fUSD/lending_fUSD_20260314
["ID","MTS","AMOUNT","RATE_DAILY","PERIOD"]
[408343014,1773466241823,-151.0,0.0002,2]
[408343015,1773466241833,-153.235213,0.0002,2]
[408343016,1773466241843,-151.0,0.0002,2]
[408343017,1773466241853,-151.0,0.0002,2]
[408343018,1773466241863,-928.96426,0.0002,2]
[408343019,1773466241872,-928.96426,0.0002,2]
[408343020,1773466241882,-928.96426,0.0002,2]
[408343021,1773466241891,-928.96426,0.0002,2]
[408343022,1773466241901,-928.96426,0.0002,2]
[408343023,1773466241910,-928.96426,0.0002,2]
[408343024,1773466241920,-928.96426,0.0002,2]
[408343025,1773466241929,-928.96426,0.0002,2]
[408343026,1773466241939,-151.0,0.0002,2]
[408343027,1773466241948,-151.0,0.0002,2]
[408343028,1773466241957,-151.0,0.0002,2]
[408343029,1773466241967,-151.0,0.0002,2]
[408343030,1773466241979,-1173.339696,0.0002,2]
[408343031,1773466241989,-1173.339696,0.0002,2]
[408343032,1773466241999,-1173.339696,0.0002,2]
[408343033,1773466242008,-1173.339696,0.0002,2]
[408343034,1773466242018,-1173.339696,0.0002,2]
[408343035,1773466242027,-1173.339696,0.0002,2]
[408343036,1773466242037,-1173.339696,0.0002,2]
[408343037,1773466242047,-1173.339696,0.0002,2]
[408343038,1773466242056,-460.198827,0.0002,2]
[408343039,1773466242066,-460.198827,0.0002,2]
[408343040,1773466242075,-460.198827,0.0002,2]
[408343041,1773466242085,-228.236504,0.0002,2]
[408343042,1773466242094,-460.198827,0.0002,2]
[408343043,1773466242104,-228.236504,0.0002,2]
[408343044,1773466242113,-460.198827,0.0002,2]
[408343045,1773466242123,-228.236504,0.0002,2]
[408343046,1773466242133,-460.198827,0.0002,2]
[408343047,1773466242142,-228.236504,0.0002,2]
[408343048,1773466242152,-460.198827,0.0002,2]
[408343049,1773466242163,-460.198827,0.0002,2]
[408343050,1773466242173,-228.236504,0.0002,2]
[408343051,1773466242182,-228.236504,0.0002,2]
[408343052,1773466242192,-228.236504,0.0002,2]
[408343053,1773466242201,-228.236504,0.0002,2]
[408343054,1773466242211,-445.140223,0.0002,2]
[408343055,1773466242220,-445.140223,0.0002,2]
[408343056,1773466242230,-445.140223,0.0002,2]
[408343057,1773466242239,-445.140223,0.0002,2]
[408343058,1773466242249,-1450.62673,0.0002,2]
[408343059,1773466242259,-1450.62673,0.0002,2]
[408343060,1773466242269,-1450.62673,0.0002,2]
[408343061,1773466242278,-1450.62672,0.0002,2]
[408343062,1773466242288,-1957.361236,0.0002,2]
[408343063,1773466242299,-1957.361236,0.0002,2]
[408343064,1773466242309,-1957.361236,0.0002,2]
[408343065,1773466242318,-1957.361236,0.0002,2]
[408343066,1773466242328,-215.148727,0.0002,2]
[408343067,1773466242337,-215.148727,0.0002,2]
[408343068,1773466242347,-215.148727,0.0002,2]
[408343069,1773466242356,-215.148727,0.0002,2]
[408343070,1773466242366,-2729.76,0.0002,2]
[408343071,1773466242375,-1213.15,0.00020014,2]
[408343072,1773466242386,-500.0,0.00020019,2]
[408343073,1773466242593,-500.0,0.00020019,2]
[408343074,1773466242603,-259.12953313,0.00020019,2]
[408343075,1773466242613,-500.0,0.00020019,2]
[408343076,1773466242622,-500.0,0.00020019,2]
[408343077,1773466242631,-232.79888752,0.00020019,2]
[408343078,1773466242640,-150.0,0.00020019,2]
[408343079,1773466242650,-500.0,0.00020019,2]
[408343080,1773466242660,-500.0,0.00020019,2]
[408343081,1773466242670,-500.0,0.00020019,2]
[408343082,1773466242680,-150.0,0.00020019,2]
[408343083,1773466242691,-500.0,0.00020019,2]
[408343084,1773466242700,-500.0,0.00020019,2]
[408343085,1773466242709,-507.0,0.00020019,2]
[408343086,1773466242718,-500.0,0.00020019,2]
[408343087,1773466242728,-500.0,0.00020019,2]
[408343088,1773466242737,-500.0,0.00020019,2]
[408343089,1773466242746,-500.0,0.00020019,2]
[408343090,1773466242756,-500.0,0.00020019,2]
[408343091,1773466242765,-500.0,0.00020019,2]
[408343092,1773466242774,-500.0,0.00020019,2]
[408343093,1773466242783,-150.0,0.00020019,2]
[408343094,1773466242793,-500.0,0.00020019,2]
[408343095,1773466242802,-500.0,0.00020019,2]
[408343096,1773466242812,-500.0,0.00020019,2]
[408343097,1773466242821,-500.0,0.00020019,2]
[408343098,1773466242831,-232.25163408,0.00020019,2]
[408343099,1773466242841,-540.0,0.00020019,2]
[408343101,1773466242850,-500.0,0.00020019,2]
[408343102,1773466242859,-433.0,0.00020053,2]
[408343103,1773466242868,-500.0,0.00020074,2]
[408343105,1773466242877,-199.36829785,0.00020074,2]
[408343106,1773466242886,-433.43679377,0.00020074,2]
[408343107,1773466242895,-626.29568284,0.00020074,2]
[408343109,1773466242904,-150.0,0.00020074,2]
[408343111,1773466242914,-500.0,0.00020074,2]
[408343113,1773466242923,-500.0,0.00020074,2]
[408343115,1773466242933,-500.0,0.00020074,2]
[408343119,1773466242942,-150.0,0.00020074,2]
[408343120,1773466242951,-500.0,0.00020074,2]
[408343121,1773466242960,-500.0,0.00020074,2]
[408343122,1773466242969,-507.0,0.00020074,2]
[408343123,1773466242979,-500.0,0.00020074,2]
[408343125,1773466242990,-500.0,0.00020074,2]
[408343126,1773466242998,-500.0,0.00020074,2]
[408343128,1773466243007,-500.0,0.00020074,2]
[408343131,1773466243017,-500.0,0.00020074,2]
[408343133,1773466243026,-500.0,0.00020074,2]
[408343135,1773466243036,-272.57973834,0.00020074,2]
[408343137,1773466243045,-241.19129578,0.00020074,2]
[408343139,1773466243056,-500.0,0.00020074,2]
[408343140,1773466243066,-500.0,0.00020074,2]
[408343141,1773466243076,-604.23944135,0.00020074,2]
[408343142,1773466243085,-500.0,0.00020074,2]
[408343143,1773466243095,-540.0,0.00020074,2]
[408343144,1773466243104,-500.0,0.00020074,2]
[408343145,1773466243113,-151.0,0.00020074,2]
[408343146,1773466243123,-1173.339696,0.00020074,2]
[408343147,1773466243132,-1173.339696,0.00020074,2]
[408343148,1773466243141,-1173.339696,0.00020074,2]
[408343149,1773466243150,-1173.339696,0.00020074,2]
[408343150,1773466243160,-460.198827,0.00020074,2]
[408343151,1773466243169,-460.198827,0.00020074,2]
[408343152,1773466243179,-228.236504,0.00020074,2]
[408343153,1773466243188,-460.198827,0.00020074,2]
[408343154,1773466243198,-228.236504,0.00020074,2]
[408343155,1773466243208,-460.198827,0.00020074,2]
[408343156,1773466243217,-228.236504,0.00020074,2]
[408343157,1773466243227,-228.236504,0.00020074,2]
[408343158,1773466243236,-445.140223,0.00020074,2]
[408343159,1773466243246,-445.140223,0.00020074,2]
[408343160,1773466243255,-445.140223,0.00020074,2]
[408343161,1773466243265,-445.140223,0.00020074,2]
[408343162,1773466243274,-1957.361236,0.00020074,2]
[408343163,1773466243284,-1957.361236,0.00020074,2]
[408343164,1773466243293,-1957.361236,0.00020074,2]
[408343165,1773466243302,-1957.361236,0.00020074,2]
[408343166,1773466243312,-215.148727,0.00020074,2]
[408343167,1773466243321,-215.148727,0.00020074,2]
[408343168,1773466243331,-215.148727,0.00020074,2]
[408343169,1773466243340,-215.148727,0.00020074,2]
[408343170,1773466243350,-1000.0,0.00020082,2]
[408343171,1773466243359,-433.0,0.00020082,2]
[408343172,1773466243368,-248.3007071,0.00020093,2]
[408343173,1773466243377,-298.26089446,0.00020093,2]
[408343174,1773466243387,-673.66,0.00020094,2]
[408343175,1773466243397,-281.0,0.00020102,2]
[408343176,1773466243406,-151.0,0.00020128,2]
[408343177,1773466243416,-151.0,0.00020128,2]
[408343178,1773466243425,-151.0,0.00020128,2]
[408343179,1773466243434,-500.0,0.00020128,2]
[408343180,1773466243444,-150.0,0.00020128,2]
[408343181,1773466243453,-500.83843345,0.00020128,2]
[408343182,1773466243463,-500.0,0.00020128,2]
[408343183,1773466243472,-500.0,0.00020128,2]
[408343184,1773466243484,-150.0,0.00020128,2]
[408343185,1773466243493,-500.0,0.00020128,2]
[408343186,1773466243503,-272.89953522,0.00020128,2]
[408343187,1773466243512,-507.0,0.00020128,2]
[408343188,1773466243523,-500.0,0.00020128,2]
[408343189,1773466243532,-500.0,0.00020128,2]
[408343190,1773466243542,-317.21851997,0.00020128,2]
[408343191,1773466243553,-158.18093796,0.00020128,2]
[408343192,1773466243562,-500.0,0.00020128,2]
[408343193,1773466243573,-500.0,0.00020128,2]
[408343194,1773466243583,-466.82840066,0.00020128,2]
[408343195,1773466243592,-500.0,0.00020128,2]
[408343196,1773466243601,-500.0,0.00020128,2]
[408343197,1773466243610,-540.0,0.00020128,2]
[408343198,1773466243619,-507.48312058,0.00020128,2]
[408343199,1773466243628,-1518.0,0.00020142,2]
[408343200,1773466243638,-1518.0,0.00020142,2]
[408343201,1773466243647,-160.0,0.00020142,2]
[408343202,1773466243656,-160.45403572,0.00020142,2]
[408343204,1773466243666,-1515.0,0.00020142,2]
[408343205,1773466243675,-1518.0,0.00020142,2]
[408343206,1773466243684,-1518.0,0.00020142,2]
[408343207,1773466243693,-1518.0,0.00020142,2]
[408343209,1773466243703,-152.0,0.00020142,2]
[408343211,1773466243713,-188.29153,0.00020142,2]
[408343213,1773466243722,-151.0,0.00020142,2]
[408343215,1773466243733,-655.434556,0.00020142,2]
[408343216,1773466243743,-655.434556,0.00020142,2]
[408343217,1773466243752,-655.434556,0.00020142,2]
[408343218,1773466243761,-655.434556,0.00020142,2]
[408343219,1773466243771,-151.0,0.00020142,2]
[408343220,1773466243780,-151.0,0.00020142,2]
[408343221,1773466243789,-151.0,0.00020142,2]
[408343222,1773466243798,-151.0,0.00020142,2]
[408343223,1773466243808,-928.96426,0.00020142,2]
[408343224,1773466243817,-928.96426,0.00020142,2]
[408343225,1773466243827,-928.96426,0.00020142,2]
[408343226,1773466243836,-928.96426,0.00020142,2]
[408343227,1773466243845,-1518.0,0.0002017,2]
[408343228,1773466243854,-1518.0,0.0002017,2]
[408343229,1773466243864,-160.0,0.0002017,2]
[408343230,1773466243874,-1518.0,0.0002017,2]
[408343231,1773466243882,-1518.0,0.0002017,2]
[408343232,1773466243892,-1518.0,0.0002017,2]
[408343233,1773466243900,-1518.0,0.0002017,2]
[408343234,1773466243910,-465.80646312,0.0002017,2]
[408343235,1773466243919,-160.0,0.0002017,2]
[408343236,1773466243928,-160.74744614,0.0002017,2]
[408343237,1773466243938,-500.0,0.00020183,2]
[408343238,1773466243948,-204.17010001,0.00020183,2]
[408343239,1773466243956,-500.0,0.00020183,2]
[408343240,1773466243965,-500.0,0.00020183,2]
[408343241,1773466243974,-150.0,0.00020183,2]
[408343242,1773466243984,-500.0,0.00020183,2]
[408343243,1773466243993,-507.0,0.00020183,2]
[408343244,1773466244003,-500.0,0.00020183,2]
[408343245,1773466244012,-500.0,0.00020183,2]
[408343246,1773466244021,-500.0,0.00020183,2]
[408343247,1773466244031,-245.82795208,0.00020183,2]
[408343248,1773466244040,-500.0,0.00020183,2]
[408343249,1773466244050,-500.0,0.00020183,2]
[408343250,1773466244059,-540.0,0.00020183,2]
[408343251,1773466244068,-223.65115621,0.00020185,2]
[408343252,1773466244077,-3092.0,0.00020196,2]
[408343253,1773466244086,-478.22,0.00020213,2]
[408343254,1773466244096,-506.39079374,0.00020221,2]
[408343255,1773466244105,-500.40770532,0.00020221,2]
[408343256,1773466244115,-1000.0,0.00020221,2]
[408343257,1773466244124,-1000.0,0.00020221,2]
[408343258,1773466244133,-509.83418179,0.00020221,2]
[408343259,1773466244143,-1000.92119116,0.00020221,2]
[408343260,1773466244152,-2733.15,0.00020224,2]
[408343261,1773466244161,-445.140223,0.00020224,2]
[408343262,1773466244171,-445.140223,0.00020224,2]
[408343263,1773466244180,-445.140223,0.00020224,2]
[408343264,1773466244190,-445.140223,0.00020224,2]
[408343265,1773466244199,-1957.361236,0.00020224,2]
[408343266,1773466244208,-1957.361236,0.00020224,2]
[408343267,1773466244217,-1957.361236,0.00020224,2]
[408343268,1773466244226,-1957.361236,0.00020224,2]
[408343269,1773466244236,-500.0,0.00020238,2]
[408343270,1773466244246,-500.0,0.00020238,2]
[408343271,1773466244255,-500.0,0.00020238,2]
[408343272,1773466244264,-206.26433003,0.00020238,2]
[408343273,1773466244274,-500.0,0.00020238,2]
[408343274,1773466244283,-507.0,0.00020238,2]
[408343275,1773466244293,-500.0,0.00020238,2]
[408343276,1773466244302,-500.0,0.00020238,2]
[408343277,1773466244312,-500.0,0.00020238,2]
[408343278,1773466244321,-500.0,0.00020238,2]
[408343279,1773466244331,-500.0,0.00020238,2]
[408343280,1773466244340,-540.0,0.00020238,2]
[408343281,1773466244349,-433.0,0.00020244,2]
[408343282,1773466244360,-168.0,0.00020267,2]
[408343283,1773466244369,-500.0,0.00020273,2]
[408343284,1773466244378,-333.57993329,0.00020293,2]
[408343285,1773466244388,-500.0,0.00020293,2]
[408343286,1773466244397,-500.0,0.00020293,2]
[408343287,1773466244406,-507.0,0.00020293,2]
[408343288,1773466244416,-500.0,0.00020293,2]
[408343289,1773466244425,-500.0,0.00020293,2]
[408343290,1773466244434,-500.0,0.00020293,2]
[408343291,1773466244444,-500.0,0.00020293,2]
[408343292,1773466244453,-500.0,0.00020293,2]
[408343293,1773466244462,-540.0,0.00020293,2]
[408343294,1773466244472,-298.105305,0.00020293,2]
[408343295,1773466244486,-151.0,0.00020293,2]
[408343296,1773466244495,-1173.339696,0.00020293,2]
[408343297,1773466244505,-1173.339696,0.00020293,2]
[408343298,1773466244515,-1173.339696,0.00020293,2]
[408343299,1773466244527,-1173.339696,0.00020293,2]
[408343300,1773466244537,-460.198827,0.00020293,2]
[408343301,1773466244546,-460.198827,0.00020293,2]
[408343302,1773466244556,-228.236504,0.00020293,2]
[408343303,1773466244566,-460.198827,0.00020293,2]
[408343304,1773466244575,-228.236504,0.00020293,2]
[408343305,1773466244585,-460.198827,0.00020293,2]
[408343306,1773466244593,-228.236504,0.00020293,2]
[408343307,1773466244602,-228.236504,0.00020293,2]
[408343308,1773466244611,-433.0,0.00020304,2]
[408343309,1773466244621,-500.0,0.00020348,2]
[408343310,1773466244630,-500.0,0.00020348,2]
[408343311,1773466244642,-507.0,0.00020348,2]
[408343312,1773466244652,-500.0,0.00020348,2]
[408343313,1773466244661,-507.35969373,0.00020348,2]
[408343314,1773466244671,-500.0,0.00020348,2]
[408343315,1773466244680,-500.0,0.00020348,2]
[408343316,1773466244689,-261.22663518,0.00020348,2]
[408343317,1773466244698,-540.0,0.00020348,2]
[408343318,1773466244707,-1000.0,0.00020356,2]
[408343319,1773466244716,-215.148727,0.00020356,2]
[408343320,1773466244726,-215.148727,0.00020356,2]
[408343321,1773466244736,-215.148727,0.00020356,2]
[408343322,1773466244746,-215.148727,0.00020356,2]
[408343323,1773466244756,-500.0,0.00020402,2]
[408343324,1773466244766,-500.0,0.00020402,2]
[408343325,1773466244775,-507.0,0.00020402,2]
[408343326,1773466244785,-500.0,0.00020402,2]
[408343327,1773466244794,-500.0,0.00020402,2]
[408343328,1773466244804,-500.0,0.00020402,2]
[408343329,1773466244813,-540.0,0.00020402,2]
[408343330,1773466244822,-1000.0,0.00020421,2]
[408343331,1773466244831,-502.29775032,0.00020421,2]
[408343332,1773466244840,-151.0,0.00020421,2]
[408343333,1773466244849,-151.0,0.00020421,2]
[408343334,1773466244858,-928.96426,0.00020421,2]
[408343335,1773466244868,-928.96426,0.00020421,2]
[408343336,1773466244877,-928.96426,0.00020421,2]
[408343337,1773466244886,-928.96426,0.00020421,2]
[408343338,1773466244896,-170.879044,0.00020457,2]
[408343339,1773466244906,-655.434556,0.00020457,2]
[408343340,1773466244917,-655.434556,0.00020457,2]
[408343341,1773466244927,-655.434556,0.00020457,2]
[408343342,1773466244937,-655.434556,0.00020457,2]
[408343343,1773466244946,-151.0,0.00020457,2]
[408343344,1773466244955,-179.30828,0.00020457,2]
[408343345,1773466244964,-151.0,0.00020457,2]
[408343346,1773466244973,-151.0,0.00020457,2]
[408343347,1773466244983,-286.443697,0.00020457,2]
[408343348,1773466244992,-500.0,0.00020457,2]
[408343349,1773466245002,-500.0,0.00020457,2]
[408343350,1773466245012,-507.0,0.00020457,2]
[408343351,1773466245023,-500.0,0.00020457,2]
[408343352,1773466245032,-500.0,0.00020457,2]
[408343353,1773466245041,-500.0,0.00020457,2]
[408343354,1773466245053,-540.0,0.00020457,2]
[408343355,1773466245063,-2801.28854949,0.00020469,2]
[408343356,1773466245072,-417.0,0.0002047,2]
[408343357,1773466245081,-500.0,0.00020512,2]
[408343358,1773466245091,-305.20458016,0.00020512,2]
[408343359,1773466245100,-507.0,0.00020512,2]
[408343360,1773466245109,-500.0,0.00020512,2]
[408343361,1773466245119,-500.0,0.00020512,2]
[408343362,1773466245129,-500.0,0.00020512,2]
[408343363,1773466245138,-540.0,0.00020512,2]
[408343364,1773466245148,-469.70943399,0.00020567,2]
[408343365,1773466245159,-507.0,0.00020567,2]
[408343366,1773466245168,-500.0,0.00020567,2]
[408343367,1773466245178,-169.52031355,0.00020567,2]
[408343368,1773466245187,-500.0,0.00020567,2]
[408343369,1773466245197,-540.0,0.00020567,2]
[408343370,1773466245206,-1230.0,0.00020574,2]
[408343371,1773466245215,-2000.0,0.000206,2]
[408343372,1773466245225,-507.0,0.00020622,2]
[408343373,1773466245234,-500.0,0.00020622,2]
[408343374,1773466245244,-500.0,0.00020622,2]
[408343375,1773466245254,-540.0,0.00020622,2]
[408343376,1773466245263,-1999.0,0.0002063,2]
[408343377,1773466245272,-433.0,0.00020637,2]
[408343378,1773466245281,-309.29654756,0.00020641,2]
[408343379,1773466245291,-507.0,0.00020676,2]
[408343380,1773466245301,-638.81180451,0.00020676,2]
[408343381,1773466245310,-500.0,0.00020676,2]
[408343382,1773466245320,-540.0,0.00020676,2]
[408343383,1773466245329,-166.66,0.0002068,2]
[408343384,1773466245339,-417.0,0.00020681,2]
[408343385,1773466245348,-478.22,0.00020706,2]
[408343386,1773466245360,-589.96,0.00020726,2]
[408343387,1773466245369,-507.0,0.00020731,2]
[408343388,1773466245379,-314.64799322,0.00020731,2]
[408343389,1773466245388,-540.0,0.00020731,2]
[408343390,1773466245398,-1503.8059791,0.00020768,2]
[408343391,1773466245407,-1500.0,0.00020768,2]
[408343392,1773466245417,-507.0,0.00020786,2]
[408343393,1773466245426,-540.0,0.00020786,2]
[408343394,1773466245436,-2000.0,0.000208,2]
[408343395,1773466245445,-212.44,0.0002081,2]
[408343396,1773466245456,-350.0,0.0002082,2]
[408343397,1773466245465,-797.01217445,0.00020821,2]
[408343398,1773466245475,-445.140223,0.00020822,2]
[408343399,1773466245489,-445.140223,0.00020822,2]
[408343400,1773466245498,-445.140223,0.00020822,2]
[408343401,1773466245508,-445.140227,0.00020822,2]
[408343402,1773466245518,-1957.361236,0.00020822,2]
[408343403,1773466245529,-1957.361236,0.00020822,2]
[408343404,1773466245538,-1957.361236,0.00020822,2]
[408343405,1773466245548,-1957.361245,0.00020822,2]
[408343406,1773466245557,-507.0,0.00020841,2]
[408343407,1773466245566,-540.0,0.00020841,2]
[408343408,1773466245576,-168.0,0.00020843,2]
[408343409,1773466245586,-168.0,0.00020856,2]
[408343410,1773466245595,-151.0,0.00020856,2]
[408343411,1773466245604,-1000.0,0.0002087,2]
[408343412,1773466245613,-1293.60658823,0.00020887,2]
[408343413,1773466245622,-1443.16577908,0.00020892,2]
[408343414,1773466245632,-507.0,0.00020896,2]
[408343415,1773466245642,-540.0,0.00020896,2]
[408343416,1773466245651,-1230.0,0.00020944,2]
[408343417,1773466245661,-1173.339696,0.00020944,2]
[408343418,1773466245670,-1173.339696,0.00020944,2]
[408343419,1773466245679,-1173.339696,0.00020944,2]
[408343420,1773466245689,-1173.339705,0.00020944,2]
[408343421,1773466245698,-460.198827,0.00020944,2]
[408343422,1773466245707,-460.198827,0.00020944,2]
[408343423,1773466245716,-228.236504,0.00020944,2]
[408343424,1773466245726,-460.198827,0.00020944,2]
[408343425,1773466245735,-228.236504,0.00020944,2]
[408343426,1773466245745,-460.198828,0.00020944,2]
[408343427,1773466245754,-228.236504,0.00020944,2]
[408343428,1773466245763,-228.236496,0.00020944,2]
[408343429,1773466245773,-507.0,0.0002095,2]
[408343431,1773466245783,-540.0,0.0002095,2]
[408343432,1773466245792,-398.50152088,0.00020968,2]
[408343433,1773466245812,-102.1849847,0.00020968,2]
[408343434,1773466245822,-507.0,0.00021005,2]
[408343435,1773466245831,-540.0,0.00021005,2]
[408343437,1773466245841,-4670.60184373,0.00021014,2]
[408343438,1773466245850,-417.0,0.00021035,2]
[408343439,1773466245859,-507.0,0.0002106,2]
[408343440,1773466245869,-540.0,0.0002106,2]
[408343441,1773466245878,-240.52762985,0.0002108,2]
[408343442,1773466245887,-284.21,0.0002109,2]
[408343443,1773466246026,-150.19621111,0.00021093,2]
[408343444,1773466246036,-151.0,0.000211,2]
[408343445,1773466246046,-928.96426,0.000211,2]
[408343446,1773466246055,-928.96426,0.000211,2]
[408343447,1773466246064,-928.96426,0.000211,2]
[408343448,1773466246073,-928.964267,0.000211,2]
[408343449,1773466246083,-2000.0,0.000211,2]
[408343450,1773466246092,-507.0,0.00021115,2]
[408343451,1773466246101,-540.0,0.00021115,2]
[408343452,1773466246110,-215.148727,0.00021115,2]
[408343453,1773466246119,-215.148727,0.00021115,2]
[408343454,1773466246128,-215.148727,0.00021115,2]
[408343455,1773466246138,-215.148736,0.00021115,2]
[408343456,1773466246148,-150.0,0.0002112,2]
[408343457,1773466246157,-1230.0,0.00021155,2]
[408343458,1773466246166,-910.67410755,0.0002116,2]
[408343459,1773466246304,-200.0,0.00019021,2]
[408343460,1773466246313,-151.0,0.00020019,2]
[408343461,1773466246323,-838.99670189,0.00020019,2]
[408343462,1773466246332,-349.32589245,0.0002116,2]
[408343463,1773466246341,-273.821,0.0002116,2]
[408343464,1773466246351,-619.48394976,0.0002116,2]
[408343467,1773466246369,-306.83905024,0.0002116,2]
[408343469,1773466246379,-1223.579,0.0002116,2]
[408343471,1773466246388,-6067.933,0.0002116,2]
[408343473,1773466246397,-1851.16048851,0.0002116,2]
[408343476,1773466246408,-1657.83951149,0.0002116,2]
[408343478,1773466246418,-454.84821732,0.0002116,2]
[408343480,1773466246429,-588.15178268,0.0002116,2]
[408343482,1773466246442,-655.434556,0.0002116,2]
[408343484,1773466246453,-655.434556,0.0002116,2]
[408343485,1773466246462,-655.434556,0.0002116,2]
[408343486,1773466246472,-655.434556,0.0002116,2]
[408343487,1773466246483,-151.0,0.0002116,2]
[408343488,1773466246492,-151.0,0.0002116,2]
[408343489,1773466246502,-151.0,0.0002116,2]
[408343490,1773466246511,-507.0,0.00021169,2]
[408343491,1773466246521,-540.0,0.00021169,2]
[408343492,1773466246532,-150.0,0.00021188,2]
[408343493,1773466246542,-320.74051982,0.00021189,2]
[408343494,1773466246551,-478.22,0.00021199,2]
[408343495,1773466246562,-153.51,0.00021219,2]
[408343496,1773466246572,-210.68380973,0.00021224,2]
[408343497,1773466246588,-296.79034471,0.00021224,2]
[408343498,1773466246598,-563.87974126,0.00021224,2]
[408343499,1773466246608,-168.0,0.00021269,2]
[408343500,1773466246617,-350.0,0.00021284,2]
[408343501,1773466246627,-240.52762985,0.00021288,2]
[408343502,1773466246640,-1001.29318119,0.00021316,2]
[408343503,1773466246650,-673.66,0.00021464,2]
[408343504,1773466246660,-240.52762985,0.00021497,2]
[408343505,1773466246669,-166.67,0.00021584,2]
[408343506,1773466246679,-1941.35343956,0.00021595,2]
[408343507,1773466246736,-203.926946,0.000199,2]
[408343508,1773466246746,-3561.14656044,0.00021595,2]
[408343509,1773466246755,-168.0,0.00021602,2]
[408343510,1773466246765,-357.48824755,0.00021654,2]
[408343511,1773466246774,-589.96,0.00021668,2]
[408343512,1773466246783,-478.22,0.00021692,2]
[408343513,1773466246792,-500.0,0.00021726,2]
[408343514,1773466246802,-500.0,0.00021726,2]
[408343515,1773466246811,-150.0,0.00021726,2]
[408343516,1773466246819,-172.991,0.00021726,2]
[408343517,1773466246829,-235.914,0.00021726,2]
[408343518,1773466246840,-250.0,0.00021726,2]
[408343519,1773466246849,-201.292,0.00021726,2]
[408343520,1773466246859,-219.836,0.00021726,2]
[408343521,1773466246868,-162.081,0.00021726,2]
[408343522,1773466246877,-250.0,0.00021726,2]
[408343523,1773466246886,-332.60791905,0.00021737,2]
[408343524,1773466246895,-166.66,0.00021759,2]
[408343525,1773466246904,-194.66,0.00021875,2]
[408343526,1773466246913,-151.87,0.00021918,2]
[408343527,1773466246922,-5000.0,0.00021918,2]
[408343528,1773466246931,-151.0,0.00021918,2]
[408343529,1773466246940,-151.0,0.00021918,2]
[408343530,1773466246949,-151.0,0.00021918,2]
[408343531,1773466246959,-151.0,0.00021918,2]
[408343532,1773466246968,-151.0,0.00021918,2]
[408343533,1773466246977,-151.0,0.00021918,2]
[408343534,1773466246986,-151.000033,0.00021918,2]
[408343535,1773466246994,-2262.3523047,0.00022008,2]
[408343536,1773466247003,-6313.933878,0.00022008,2]
[408343537,1773466247013,-191.64,0.00022089,14]
[408343538,1773466247021,-8233.4340769,0.00022147,2]
[408343539,1773466247030,-1510.7938531,0.00022159,2]
[408343540,1773466247039,-2000.0,0.00022189,2]
[408343541,1773466247048,-344.91441206,0.00022285,2]
[408343542,1773466247058,-160.0,0.0002237,2]
[408343543,1773466247066,-126.00109896,0.00022397,2]
[408343544,1773466247078,-2496.45683264,0.00022397,2]
[408343545,1773466247087,-163.43,0.000224,2]
[408343546,1773466247097,-655.434556,0.00022533,2]
[408343547,1773466247106,-655.434556,0.00022533,2]
[408343548,1773466247115,-655.434556,0.00022533,2]